Cogmind - Beta 13 @@@ ROGUE MODE // 2024.05.02 @ 02:04:00 Player: Falling_Sands Result: Destroyed by G-47 Trooper with Particle Gun Performance ------------- Evolutions (3) 1500 Regions Visited (9) 1800 Robots Destroyed (117) 585 Value Destroyed (4248) 4248 Prototype IDs (7) 140 Alien Tech Used (0) 0 Bonus (2460) 2460 TOTAL SCORE: 10733 Bonus ------- High Alert Combat Kills 1801 Follower Combat Kills 370 Entered Garrisons 200 Aligned with FarCom 300 Friendly Fire -211 Cogmind --------- Core Integrity 0/700 Matter 292/300 Energy 99/100 System Corruption 8% Temperature Cool (9) Movement Core (50) Location -7/Factory Parts ------- > --- POWER (1) -------- (None) > --- PROPULSION (4) --- (None) > --- UTILITY (4) ------ (None) > --- WEAPON (4) ------- (None) > --- INVENTORY (5) ---- Improved Deuterium Engine Reinforced Deuterium Engine Medium Battery (150) Small Matter Pod (50) Improved Signal Interpreter Peak State ------------ > --- POWER ------------ Reinforced Deuterium Engine > --- PROPULSION ------- Titanium Leg Titanium Leg Titanium Leg Titanium Leg > --- UTILITY ---------- Improved Heat Sink Huge Storage Unit Power Shielding Improved Utility Shielding > --- WEAPON ----------- Gatling Laser Flak Gun Flak Gun Field Lobotomy Kit > --- INVENTORY -------- Light Nuclear Core Light Nuclear Core Micro Nuclear Core Carbon-fiber Leg Improved Carbon-fiber Leg Improved Carbon-fiber Leg Large Storage Unit Large Storage Unit Medium Battery Improved Signal Interpreter Improved Salvage Targeting Computer Launcher Guidance Computer Improved Weapon Shielding Heavy Ion Cannon [Rating: 50] Favorites ----------- Power Light Nuclear Core Engine Improved Deuterium Engine Power Core Light Nuclear Core Propulsion Improved Treads Treads Improved Treads Leg Titanium Leg Utility Large Storage Unit Device Improved Transmission Jammer Storage Large Storage Unit Processor Transport Network Coupler Protection Power Shielding Weapon Particle Cannon Energy Gun Gatling Laser Energy Cannon Particle Cannon Ballistic Gun AWS/Gauss Ballistic Cannon Gauss Cannon Launcher Smartbomb Launcher Special Weapon Field Lobotomy Kit Build | -11 -10 -9 -9 -9 -8 -8 -8 -8 -7 ------- Run | Yrd Mat Mat Min Exi Min Mat Sto Gar Fac Slots Evolved 6 | . . 2 . . . 2 . . 2 Power . | . . . . . . . . . . Propulsion 2 | . . 2 . . . . . . . Utility 2 | . . . . . . 1 . . 1 Weapon 2 | . . . . . . 1 . . 1 Parts Attached 111 | 14 12 7 . 6 . 2 3 11 56 Power 9 | 1 1 1 . . . . 1 2 3 Engine 4 | 1 1 . . . . . . 1 1 Core 5 | . . 1 . . . . 1 1 2 Reactor . | . . . . . . . . . . Propulsion 33 | 7 3 3 . . . . 1 3 16 Treads 15 | 3 3 3 . . . . 1 3 2 Leg 18 | 4 . . . . . . . . 14 Wheel . | . . . . . . . . . . Hover . | . . . . . . . . . . Flight . | . . . . . . . . . . Utility 28 | 2 4 3 . 2 . 1 1 2 13 Device 3 | . . . . . . . . 1 2 Storage 14 | 2 3 2 . 2 . . . 1 4 Processor 2 | . 1 . . . . . 1 . . Hackware . | . . . . . . . . . . Protection 9 | . . 1 . . . 1 . . 7 Artifact . | . . . . . . . . . . Weapon 41 | 4 4 . . 4 . 1 . 4 24 Energy Gun 5 | 2 1 . . . . . . . 2 Energy Cannon 11 | . 2 . . 2 . . . 3 4 Ballistic Gun 11 | 2 . . . 1 . . . . 8 Ballistic Cannon 3 | . . . . . . . . . 3 Launcher 7 | . 1 . . . . 1 . 1 4 Special Weapon 4 | . . . . 1 . . . . 3 Impact Weapon . | . . . . . . . . . . Slashing Weapon . | . . . . . . . . . . Piercing Weapon . | . . . . . . . . . . Special Melee Weapon . | . . . . . . . . . . Unidentified Prototypes 4 | . . . . 3 . . . . 1 Parts Lost 30 | . . . . . . . . 1 29 Power 2 | . . . . . . . . . 2 Propulsion 11 | . . . . . . . . 1 10 Utility 4 | . . . . . . . . . 4 Weapon 13 | . . . . . . . . . 13 Highest Loss Streak 13 | . . . . . . . . 1 13 To Critical Strikes 1 | . . . . . . . . . 1 Average Slot Usage (%) 91 | . 87 99 100 91 88 90 88 89 92 Engine 4 | . 7 3 . . . . . 6 3 Core 4 | . . 7 11 11 11 9 8 2 3 Treads 24 | . 26 44 44 44 44 36 35 35 3 Leg 8 | . . . . . . . . . 24 Device 4 | . . . . . . . . 8 6 Storage 13 | . 21 17 11 11 11 9 9 17 9 Protection 6 | . . 4 11 11 11 18 17 . 11 Energy Gun 2 | . 4 . . . . . . . 5 Energy Cannon 8 | . 12 22 22 6 . . . 8 6 Ballistic Gun 7 | . 7 . . 7 11 9 9 6 8 Ballistic Cannon 1 | . . . . . . . . . 3 Launcher 2 | . 2 . . . . 9 9 2 2 Naked Turns 60 | . . . . . . . . . 60 Heaviest Build 119 | 12 37 37 34 38 36 41 41 55 119 Greatest Support 92 | 40 46 92 92 92 92 92 92 89 86 Greatest Overweight (x) 3 | 3 . . . . . . . . 3 Average Overweight (x) . | . . . . . . . . . . Largest Inventory Capacity 25 | 8 15 25 15 25 15 15 15 15 25 Average Capacity 14 | 6 14 15 15 15 15 15 15 15 15 Most Carried 18 | 7 15 15 15 18 15 14 15 15 15 Average Carried 13 | 2 9 14 15 14 15 13 13 14 13 Final Capacity 15 | 8 15 15 15 15 15 15 15 15 5 Final Carried 15 | 5 15 15 15 15 15 13 15 15 5 Class Distribution -------------------- 36% | Mutant 31% | Skirmisher 26% | Scavenger-Tank Dominant Class ---------------- Mutant | -10/Materials Mutant | -9/Materials Mutant | -9/Mines Mutant | -9/Exiles Mutant | -8/Mines Skirmisher | -8/Materials Skirmisher | -8/Storage Skirmisher | -8/Garrison Scavenger-Tank | -7/Factory Resources | -11 -10 -9 -9 -9 -8 -8 -8 -8 -7 ----------- Run | Yrd Mat Mat Min Exi Min Mat Sto Gar Fac Matter Collected 2562 | 220 316 138 29 . 126 . . 218 1515 Remotely . | . . . . . . . . . . Salvage Created 4281 | . 347 198 9 . 82 88 . 1232 2325 Parts 232 | . 29 10 1 . 5 6 . 68 113 Haulers Intercepted 3 | . 2 . . . . . . . 1 Recyclers Shooed 2 | . . . . . . . . . 2 Parts Field Recycled . | . . . . . . . . . . Retrieved Matter . | . . . . . . . . . . Parts Self-Destructed . | . . . . . . . . . . Prevented . | . . . . . . . . . . Kills | -11 -10 -9 -9 -9 -8 -8 -8 -8 -7 ------- Run | Yrd Mat Mat Min Exi Min Mat Sto Gar Fac Combat Hostiles Destroyed 87 | . 4 4 . . . 3 . 32 44 Guns 46 | . 4 . . . . 3 . 22 17 Cannons 27 | . . 4 . . . . . 8 15 AOE 14 | . . . . . . . . 2 12 Classes Destroyed 17 | . 8 1 1 . . . . 3 4 Worker 10 | . 1 . . . . . . . 9 Builder 6 | . 2 1 . . . . . . 3 Tunneler 3 | . . . 1 . 1 . . . 1 Hauler 3 | . 2 . . . . . . . 1 Recycler 3 | . 1 . . . 1 . . . 1 Mechanic 1 | . . . . . . . . . 1 Operator 1 | . 1 . . . . . . . . Watcher 4 | . 1 . . . . . . 1 2 Swarmer 21 | . 3 . . . . 2 . 11 5 Grunt 37 | . 1 3 . . . . . 8 25 Brawler 2 | . . . . . . . . . 2 Duelist 3 | . . . . . . . . . 3 Sentry 11 | . . 1 . . . 1 . 4 5 Specialist 6 | . . . . . . . . 6 . Hunter 4 | . . . . . . . . 2 2 Programmer 3 | . . . . . . . . 1 2 Heavy 1 | . . . . . . . . . 1 Best Kill Streak 7 | . 4 4 1 . 2 3 . 7 7 Combat Bots Only 7 | . 3 3 . . . 3 . 7 4 Max Kills in Single Turn 5 | . 2 1 1 . 1 1 . 3 5 Gunslinging . | . . . . . . . . . . Exploded 3 | . . . . . . . . 2 3 Melee . | . . . . . . . . . . Uniques/NPCs Destroyed . | . . . . . . . . . . Combat | -11 -10 -9 -9 -9 -8 -8 -8 -8 -7 -------- Run | Yrd Mat Mat Min Exi Min Mat Sto Gar Fac Hostile Shots Fired 692 | . 9 22 . . . 3 . 73 585 Missed 217 | . 1 4 . . . 1 . 23 188 Damage Taken 6490 | . 131 227 . . . 21 . 852 5259 Core 918 | . 7 36 . . . . . 172 703 Absorbed by Shields . | . . . . . . . . . . Redirected to Shielding 269 | . . . . . . 3 . . 266 Regen/Repaired (Parts) 80 | . . . . . . . 80 . . Core Remaining (%) 89 | 100 97 . . . 91 . . 68 . Volleys Fired 234 | . 40 15 . . . . 1 57 121 Largest 4 | . 2 2 . . . . 1 1 4 Hottest 232 | . 136 136 . . . . 33 90 232 Shots Fired 589 | . 60 30 . . . 5 4 141 349 Gun 334 | . 55 . . . . 5 3 84 187 Cannon 220 | . 2 30 . . . . . 55 133 Launcher 30 | . 3 . . . . . 1 2 24 Special 5 | . . . . . . . . . 5 Kinetic 295 | . 39 . . . . 5 3 84 164 Thermal 241 | . 18 30 . . . . . 55 138 Explosive 16 | . 3 . . . . . 1 2 10 Electromagnetic 32 | . . . . . . . . . 32 Robot Hit Streak 14 | . 11 7 . . . 3 5 11 14 Robot Miss Streak 8 | . 6 4 . . . 1 . 4 8 Penetration Max 1 | . . . . . . . . . 1 Secondary Targets 2 | . . . . . . . . . 2 Max Gunslinging Chain 1 | . . . . . . . . . 1 Autonomous 93 | . . . . . . 5 3 85 . Shots Hit Robots 355 | . 32 16 . . . 4 3 88 212 Core Hits 230 | . 16 6 . . . 3 . 42 163 Critical Kills 4 | . . . . . . . . 2 2 Critical Parts Destroyed 1 | . . . . . . . . 1 . Critical Strikes 7 | . . . . . . . . 3 4 Destroy 5 | . . . . . . . . 3 2 Blast 2 | . . . . . . . . . 2 Melee Attacks . | . . . . . . . . . . Impact . | . . . . . . . . . . Slashing . | . . . . . . . . . . Piercing . | . . . . . . . . . . Sneak Attacks . | . . . . . . . . . . Combat Hostiles . | . . . . . . . . . . Follow-up Attacks . | . . . . . . . . . . Damage Inflicted 10390 | . 469 366 3 . 8 115 . 3005 6424 Guns 4777 | . 280 . . . . 115 . 1998 2384 Cannons 2605 | . 20 366 . . . . . 599 1620 Explosions 2982 | . 165 . . . . . . 408 2409 Melee . | . . . . . . . . . . Ramming 26 | . 4 . 3 . 8 . . . 11 Kinetic 4291 | . 191 . . . . 115 . 1998 1987 Thermal 3281 | . 109 366 . . . . . 599 2207 Explosive 1784 | . 165 . . . . . . 408 1211 Electromagnetic 1008 | . . . . . . . . . 1008 Impact . | . . . . . . . . . . Slashing . | . . . . . . . . . . Piercing . | . . . . . . . . . . Highest Corruption 8 | . . . . . . . . . 8 Average Corruption 6 | . . . . . . . . . 6 Corruption Purged . | . . . . . . . . . . Corruption Blocked . | . . . . . . . . . . Effects 71 | . . . . . . . . . 71 Message Errors 17 | . . . . . . . . . 17 Matter Fused 16 | . . . . . . . . . 16 Heat Flow Errors 11 | . . . . . . . . . 11 Energy Discharges 6 | . . . . . . . . . 6 Parts Rejected 1 | . . . . . . . . . 1 Data Loss (minor) 6 | . . . . . . . . . 6 Data Loss (major) 4 | . . . . . . . . . 4 Misfires 1 | . . . . . . . . . 1 Alerts 1 | . . . . . . . . . 1 Weapon Failures 8 | . . . . . . . . . 8 Overload Shots . | . . . . . . . . . . Overflow Damage 212 | . . 1 . . . . . . 211 Projectiles 45 | . . 1 . . . . . . 44 Explosions 167 | . . . . . . . . . 167 Melee . | . . . . . . . . . . Knockbacks 7 | . . . 1 . . . . . 6 Impact 1 | . . . 1 . . . . . . Kinetic 6 | . . . . . . . . . 6 Secondary . | . . . . . . . . . . Self-Inflicted Damage 429 | . 64 . . . . . . 64 301 Shots 13 | . 2 . . . . . . 2 9 Rammed 1 | . 1 . . . . . . . . Targets Rammed 6 | . 2 . 1 . 2 . . . 1 Kicked 1 | . . . . . . . . . 1 Crushed 4 | . 1 . 1 . 2 . . . . Highest Temperature 578 | . 75 459 . . . . . 228 578 Average Temperature 140 | . 12 176 . . . . . 72 171 Received Heat Transfer 2175 | . 6 105 . . . . . 270 1794 Effects 27 | . . 2 . . . . . 1 24 Shutdowns 9 | . . . . . . . . . 9 Energy Bleed 8 | . . 1 . . . . . 1 6 Interference 3 | . . . . . . . . . 3 Matter Decay 2 | . . . . . . . . . 2 Short Circuit 3 | . . 1 . . . . . . 2 Damage (minor) 2 | . . . . . . . . . 2 Siege Activations . | . . . . . . . . . . Robots Corrupted . | . . . . . . . . . . Combat Hostiles . | . . . . . . . . . . Parts Fried 2 | . . . . . . . . . 2 Impact Corruptions . | . . . . . . . . . . Robots Melted . | . . . . . . . . . . Combat Hostiles . | . . . . . . . . . . Parts Melted 5 | . . 3 . . . . . 1 1 Heat Transferred 5142 | . 237 666 . . . . . 629 3610 Parts Sabotaged . | . . . . . . . . . . Parts Stolen . | . . . . . . . . . . Parts Stripped . | . . . . . . . . . . Power Chain Reactions 2 | . . . . . . . . . 2 Alert | -11 -10 -9 -9 -9 -8 -8 -8 -8 -7 ------- Run | Yrd Mat Mat Min Exi Min Mat Sto Gar Fac Peak Influence 1808 | . 212 152 63 . 10 63 76 1337 1808 Initial 701 | . . . 58 . . 3 34 52 701 Average 668 | . 74 102 61 . 4 4 52 711 1175 Maximum Alert Level 5 | . 1 . . . . . . 4 5 Low Security (%) 33 | 100 84 100 100 . 100 100 100 9 . Level 1 10 | . 15 . . . . . . 27 . Level 2 3 | . . . . . . . . 11 . Level 3 26 | . . . . . . . . 22 53 Level 4 22 | . . . . . . . . 29 37 Level 5 3 | . . . . . . . . . 9 High Security . | . . . . . . . . . . Max Security . | . . . . . . . . . . Squads Dispatched 22 | . 1 . . . . . . . 21 Investigation 2 | . . . . . . . . . 2 Extermination 4 | . . . . . . . . . 4 Reinforcement 7 | . 1 . . . . . . . 6 Assault 3 | . . . . . . . . . 3 Garrison 6 | . . . . . . . . . 6 Intercept . | . . . . . . . . . . Searches Triggered . | . . . . . . . . . . Construction Impeded 1 | . . . . . . . . . 1 Haulers Reinforced . | . . . . . . . . . . Active Scanning Responses . | . . . . . . . . . . Cargo Convoy Interrupts . | . . . . . . . . . . Stealth | -11 -10 -9 -9 -9 -8 -8 -8 -8 -7 --------- Run | Yrd Mat Mat Min Exi Min Mat Sto Gar Fac Distress Signals 4 | . . . . . . . . 1 3 Communications Jammed . | . . . . . . . . . . Distress Signals . | . . . . . . . . . . Times Spotted 145 | . 8 6 . . . . . 33 98 Peak Tracking Total 7 | . 3 3 . . . 5 . 5 7 Tactical Retreats 5 | . 1 . . . . . . . 4 Traps | -11 -10 -9 -9 -9 -8 -8 -8 -8 -7 ------- Run | Yrd Mat Mat Min Exi Min Mat Sto Gar Fac Traps Triggered 4 | . 1 . . . . . . 1 2 Indirectly . | . . . . . . . . . . Trap Hack Attempts . | . . . . . . . . . . Triggered . | . . . . . . . . . . Disarmed . | . . . . . . . . . . Reprogrammed . | . . . . . . . . . . Reused . | . . . . . . . . . . Traps Extracted . | . . . . . . . . . . Installed . | . . . . . . . . . . Triggered . | . . . . . . . . . . Machines | -11 -10 -9 -9 -9 -8 -8 -8 -8 -7 ---------- Run | Yrd Mat Mat Min Exi Min Mat Sto Gar Fac Machines Disabled 19 | . . . . . . . 1 3 15 Max in Single Turn 5 | . . . . . . . 1 1 5 Garrison Relay 2 | . . . . . . . . 2 . Machines Repaired . | . . . . . . . . . . Machines Dismantled . | . . . . . . . . . . Machines Sabotaged . | . . . . . . . . . . Overloaded Fab Kills . | . . . . . . . . . . Hacking | -11 -10 -9 -9 -9 -8 -8 -8 -8 -7 --------- Run | Yrd Mat Mat Min Exi Min Mat Sto Gar Fac Machines Accessed 15 | . 1 2 . . . . 4 3 5 Terminals 9 | . 1 1 . . . . 2 3 2 Fabricators . | . . . . . . . . . . Repair Stations 2 | . . . . . . . 1 . 1 Recycling Units . | . . . . . . . . . . Scanalyzers 2 | . . 1 . . . . . . 1 Garrison Access 2 | . . . . . . . 1 . 1 Total Hacks 33 | . 2 3 . . . . 11 5 12 Successful 14 | . 1 3 . . . . 7 . 3 Failed 19 | . 1 . . . . . 4 5 9 Catastrophic 3 | . . . . . . . . 1 2 Database Lockouts . | . . . . . . . . . . Manual 2 | . . . . 2 . . . . . Terminals 17 | . 2 1 . . . . 4 5 5 Fabricators . | . . . . . . . . . . Repair Stations 7 | . . . . . . . 5 . 2 Recycling Units . | . . . . . . . . . . Scanalyzers 5 | . . 2 . . . . . . 3 Garrison Access 4 | . . . . . . . 2 . 2 Terminal Hacks 7 | . 1 1 . . . . 2 . 3 Record 2 | . . . . . . . . . 2 Prototype ID Bank 1 | . . . . . . . 1 . . Terminal Index 1 | . . . . . . . 1 . . Locate Traps 2 | . . 1 . . . . . . 1 Transport Status 1 | . 1 . . . . . . . . Fabricator Hacks . | . . . . . . . . . . Repair Station Hacks 4 | . . . . . . . 4 . . Scan Component 2 | . . . . . . . 2 . . Repair 2 | . . . . . . . 2 . . Recycling Unit Hacks . | . . . . . . . . . . Scanalyzer 2 | . . 2 . . . . . . . Insert Component 1 | . . 1 . . . . . . . Analyze 1 | . . 1 . . . . . . . Garrison Access Hacks 1 | . . . . . . . 1 . . Unlock Access 1 | . . . . . . . 1 . . Unauthorized Hacks . | . . . . . . . . . . Terminals . | . . . . . . . . . . Fabricators . | . . . . . . . . . . Repair Stations . | . . . . . . . . . . Recycling Units . | . . . . . . . . . . Scanalyzers . | . . . . . . . . . . Garrison Access . | . . . . . . . . . . Data Cores Recovered 1 | . 1 . . . . . . . . Used . | . . . . . . . . . . Hacking Detections 9 | . . . . . . . 3 2 4 Full Trace Events 4 | . . . . . . . 1 1 2 Feedback Events . | . . . . . . . . . . Feedback Blocked . | . . . . . . . . . . Robot Schematics Acquired . | . . . . . . . . . . Robots Built . | . . . . . . . . . . Authchips . | . . . . . . . . . . Time . | . . . . . . . . . . Total Robot Build Rating . | . . . . . . . . . . Part Schematics Acquired 1 | . . 1 . . . . . . . Parts Built . | . . . . . . . . . . Authchips . | . . . . . . . . . . Time . | . . . . . . . . . . Total Part Build Rating . | . . . . . . . . . . Parts Repaired 2 | . . . . . . . 2 . . Time 70 | . . . . . . . 70 . . Parts Recycled . | . . . . . . . . . . Recycled Matter . | . . . . . . . . . . Retrieved Matter . | . . . . . . . . . . Retrieved Components . | . . . . . . . . . . Parts Scanalyzed 1 | . . 1 . . . . . . . Part Schematics Acquired 1 | . . 1 . . . . . . . Parts Damaged . | . . . . . . . . . . Bothacking | -11 -10 -9 -9 -9 -8 -8 -8 -8 -7 ------------ Run | Yrd Mat Mat Min Exi Min Mat Sto Gar Fac Used RIF Installer . | . . . . . . . . . . Robots Hacked . | . . . . . . . . . . Non-combat . | . . . . . . . . . . Combat . | . . . . . . . . . . Robot Hacks Applied . | . . . . . . . . . . Relay Couplers Released 12 | . . . . . . . . 12 . Machine Destruction 8 | . . . . . . . . 8 . Programmers 4 | . . . . . . . . 4 . Fabnet Peak Effective % . | . . . . . . . . . . Robots Rewired . | . . . . . . . . . . Allies Hacked . | . . . . . . . . . . Hacks Repelled . | . . . . . . . . . . Allies | -11 -10 -9 -9 -9 -8 -8 -8 -8 -7 -------- Run | Yrd Mat Mat Min Exi Min Mat Sto Gar Fac Total Allies 9 | . . . . . . . . 2 7 Largest Group 4 | . . . . . . . . 2 4 Highest-Rated Group 153 | . . . . . . . . 70 153 Highest-Rated Ally 90 | . . . . . . . . 39 90 Total Orders . | . . . . . . . . . . Ally Attacks 106 | . . . . . . . . 36 70 Total Damage 1951 | . . . . . . . . 466 1485 Kills 15 | . . . . . . . . 2 13 Allies Corrupted . | . . . . . . . . . . Allies Melted . | . . . . . . . . . . Field Lobotomies 4 | . . . . . . . . . 4 Intel | -11 -10 -9 -9 -9 -8 -8 -8 -8 -7 ------- Run | Yrd Mat Mat Min Exi Min Mat Sto Gar Fac Robot Analysis Total . | . . . . . . . . . . Derelict Logs Recovered 1 | . . . 1 . . . . . . Drone Launches . | . . . . . . . . . . Drone Recoveries . | . . . . . . . . . . Exploration | -11 -10 -9 -9 -9 -8 -8 -8 -8 -7 ------------- Run | Yrd Mat Mat Min Exi Min Mat Sto Gar Fac Turns Passed 7034 | 272 833 305 199 645 146 63 301 1883 2387 Spaces Moved 3799 | 163 432 141 124 394 90 39 137 890 1389 Core 174 | 55 . . . . . . . . 119 Treads 2455 | 85 432 141 124 394 90 39 137 890 123 Legs 1170 | 23 . . . . . . . . 1147 Wheels . | . . . . . . . . . . Hover . | . . . . . . . . . . Flight . | . . . . . . . . . . Fastest Speed 50 | 50 160 160 160 160 160 160 160 160 50 Average Speed 146 | 120 160 160 160 160 160 160 160 160 128 Slowest Speed 340 | 200 160 160 160 160 160 160 160 160 340 Overloaded Moves . | . . . . . . . . . . Propulsion Burnouts . | . . . . . . . . . . Robots Hopped . | . . . . . . . . . . Cave-ins Triggered . | . . . . . . . . . . Exploration Rate (%) 33 | 7 45 19 37 85 24 5 22 53 40 Regions Visited 9 Branch Regions 4 Pre-discovered Areas 1 | . . . 1 . . . . . . Known Exits Taken 1 | . . . . . . . 1 . . Unknown Exits Taken 7 | 1 1 1 1 1 1 1 . . . Scrap Searched 2 | . . . 1 . 1 . . . . Spaces Dug 58 | . . . . . . . 6 10 42 Terrain Destroyed 274 | . 28 . . . . . 11 21 214 Melee . | . . . . . . . . . . Projectile 47 | . . . . . . . 5 21 21 AOE 227 | . 28 . . . . . 6 . 193 Terrain Rammed . | . . . . . . . . . . Walls Destroyed . | . . . . . . . . . . Machines Disabled . | . . . . . . . . . . Actions | -11 -10 -9 -9 -9 -8 -8 -8 -8 -7 --------- Run | Yrd Mat Mat Min Exi Min Mat Sto Gar Fac Total 4856 | 242 524 191 124 410 91 40 217 1297 1720 Wait 545 | 45 6 19 . . . . 72 327 76 Move 3784 | 162 431 140 123 393 89 38 137 882 1389 Hop . | . . . . . . . . . . Pick Up 102 | 13 23 5 . 4 . . 4 10 43 Fast Attach 5 | . . 1 . . . . . 1 3 Attach 67 | 12 8 2 . 1 . 2 2 3 37 Detach 13 | 7 2 . . 2 . . . . 2 Swap 39 | 2 4 4 . 5 . . 1 7 16 Drop 61 | 1 8 5 . 5 . . . 10 32 Fire 234 | . 40 15 . . . . 1 57 121 Melee . | . . . . . . . . . . Ram . | . . . . . . . . . . Kick 1 | . . . . . . . . . 1 Crush 5 | . 2 . 1 . 2 . . . . Escape Stasis . | . . . . . . . . . . Rewire . | . . . . . . . . . . Trap . | . . . . . . . . . . Miscellaneous . | . . . . . . . . . . Route ------- -11/Scrapyard -10/Materials -9/Materials -9/Mines -9/Exiles -8/Mines -8/Materials -8/Storage -8/Garrison (discovered 2 exits: *Fac x2) -7/Factory History --------- Turn | Location | Event 102 | -11/Scrapyard | Discovered new exit (range 15) 273 | -11/Scrapyard | Entered Materials 328 | -10/Materials | Build established: Mutant 1065 | -10/Materials | Discovered new exit (range 4) 1106 | -10/Materials | Entered another Materials area 1106 | -9/Materials | Evolved 2 slots: Propulsion x2 1387 | -9/Materials | Discovered new exit (range 15) 1411 | -9/Materials | Entered Mines 1426 | -9/Mines | Met a Derelict bent on vengeance 1600 | -9/Mines | Deemed a non-threat by the Exiles lab entrance 1600 | -9/Mines | Discovered new exit (range 5) 1610 | -9/Mines | Entered Exiles 1655 | -9/Exiles | Met 8R-AWN 1676 | -9/Exiles | Met EX-HEX 1726 | -9/Exiles | Met EX-BIN 1753 | -9/Exiles | Aligned with FarCom system 1754 | -9/Exiles | Given EX-Vault access code 1791 | -9/Exiles | Opened EX-Vault 1798 | -9/Exiles | Found Prototype Special Weapon 1799 | -9/Exiles | Identified Field Lobotomy Kit 1803 | -9/Exiles | Found Prototype Energy Cannon 1804 | -9/Exiles | Identified Latent Energy Streamer 1814 | -9/Exiles | Found Prototype Ballistic Gun 1816 | -9/Exiles | Identified AWS/Gauss 1857 | -9/Exiles | Warned to stay clear of 0b10 Research branches 1908 | -9/Exiles | Met EX-DEC 1975 | -9/Exiles | Visited The Gauntlet 2228 | -9/Exiles | Discovered new exit (range 11) 2255 | -9/Exiles | Stole three prototypes: AWS/Gauss, Latent Energy Streamer, Field Lobotomy Kit 2255 | -9/Exiles | Entered Mines 2359 | -8/Mines | Discovered new exit (range 15) 2401 | -8/Mines | Entered Materials 2401 | -8/Materials | Evolved 2 slots: Utility x1, Weapon x1 2403 | -8/Materials | Discovered new exit (range 14) 2464 | -8/Materials | Entered Storage 2528 | -8/Storage | Repaired Lgt. Nuclear Core 2562 | -8/Storage | Repaired Imp. Treads 2698 | -8/Storage | Build established: Skirmisher 2765 | -8/Storage | Identified exit to Garrison 2765 | -8/Storage | Entered Garrison 2931 | -8/Garrison | Triggered checkpoint 3009 | -8/Garrison | Triggered checkpoint 3461 | -8/Garrison | Triggered checkpoint 3461 | -8/Garrison | Triggered checkpoint 3498 | -8/Garrison | Destroyed 7 combat bots 3563 | -8/Garrison | Discovered new exit (range 11) 3579 | -8/Garrison | Attempted to access garrison exit controls, blocked by remote lockdown 3637 | -8/Garrison | Triggered checkpoint 3692 | -8/Garrison | Destroyed 7 combat bots 3754 | -8/Garrison | Rescued a captive Derelict 3754 | -8/Garrison | Rescued a captive Derelict 3859 | -8/Garrison | Triggered checkpoint 3903 | -8/Garrison | Garrison Relay disabled 4228 | -8/Garrison | Garrison Relay disabled 4339 | -8/Garrison | Triggered checkpoint 4633 | -8/Garrison | Discovered new exit (range 10) 4648 | -8/Garrison | Entered Factory 4648 | -7/Factory | Accompanied by 1 ally 4648 | -7/Factory | Evolved 2 slots: Utility x1, Weapon x1 4650 | -7/Factory | FarCom data flow suspended 4840 | -7/Factory | Lost 4 parts (1n1u2w) 5172 | -7/Factory | Build established: Scavenger-Tank 5448 | -7/Factory | First assault squad dispatched 5626 | -7/Factory | Assimilated G-50 Soldier with FLK Orb 5631 | -7/Factory | Assimilated G-47 Trooper with FLK Orb 5673 | -7/Factory | Lost 3 parts (1p2w) 5698 | -7/Factory | Assimilated Y-54 Guardian with FLK Orb 5799 | -7/Factory | Allied Derelicts emerged from ambush trap array 5829 | -7/Factory | Assimilated H-61 Shepherd with FLK Orb 6068 | -7/Factory | Garrison activated, responded to threat 6792 | -7/Factory | Garrison activated, responded to threat 6799 | -7/Factory | Core integrity fell below 50% 6882 | -7/Factory | Lost 6 parts (2n1u3w) 6967 | -7/Factory | Core integrity fell below 20% 6993 | -7/Factory | Lost 13 parts (1p5n2u5w) 7035 | -7/Factory | Destroyed by G-47 Trooper with Particle Gun Last Messages --------------- 06973_ Dropped Imp. Titanium Leg. 06974_ Dropped Imp. Light Armor Plating. 06975_ Dropped Imp. Heat Sink. 06975_ Dropped Lgt. Nuclear Core. 06979_ U-05 Engineer lays Concrete. 06982_ Acquired 16 matter. 06985_ R-06 Scavenger collects Corrupted Imp. Hover Unit. 06992_ E